fUST/lending_fUST_20251113
["ID","MTS","AMOUNT","RATE_DAILY","PERIOD"]
[393826476,1763021396019,-177.34496894,0.00026238,2]
[393826477,1763021396040,-163.96153273,0.00026238,2]
[393826478,1763021396062,-1200.0,0.00026574,2]
[393826479,1763021396083,-300.0,0.00026574,2]
[393826480,1763021396106,-300.0,0.00027385,30]
[393826481,1763021396127,-2172.3728334,0.00028714,2]
[393826482,1763021396149,-300.0,0.00028742,2]
[393826483,1763021396170,-300.21631229,0.00029814,2]
[393826484,1763021396192,-159.18601816,0.00030137,7]
[393826485,1763021396382,-1027.10680637,0.00030137,7]
[393826486,1763021396408,-150.0,0.00031133,2]
[393826487,1763021396428,-314.16814021,0.00031805,2]
[393826488,1763021396448,-164.27,0.000319,60]
[393826489,1763021396467,-336.98239307,0.00031931,2]
[393826490,1763021396486,-153.0,0.00032,60]
[393826491,1763021396505,-153.0,0.00032,45]
[393826492,1763021396526,-153.0,0.00032,25]
[393826493,1763021396546,-5000.0,0.00032877,120]
[393826494,1763021396565,-237.07026689,0.000329,120]
[393826495,1763021396584,-153.0,0.00033,25]
[393826496,1763021396604,-153.0,0.00033,25]
[393826497,1763021396624,-153.0,0.00033,20]
[393826498,1763021396643,-156.0,0.00033,33]
[393826499,1763021396664,-157.7400875,0.000332,117]
[393826500,1763021396684,-408.22187774,0.00033479,2]
[393826501,1763021396706,-632.71350399,0.00033811,2]
[393826502,1763021396727,-237.07026689,0.000339,120]
[393826503,1763021396748,-153.0,0.00034,35]
[393826504,1763021396768,-344.40779832,0.00034049,7]
[393826505,1763021396789,-500.0,0.00034049,7]
[393826506,1763021396809,-500.0,0.00034049,7]
[393826507,1763021396834,-500.0,0.00034049,7]
[393826508,1763021396858,-500.0,0.00034049,7]
[393826509,1763021396880,-500.0,0.00034049,7]
[393826510,1763021396904,-196.75140381,0.00034049,7]
[393826511,1763021396925,-163.59220168,0.00034049,7]
[393826512,1763021396947,-500.0,0.00034049,7]
[393826513,1763021396969,-500.0,0.00034049,7]
[393826514,1763021396994,-500.0,0.00034049,7]
[393826515,1763021397016,-500.0,0.00034049,7]
[393826516,1763021397037,-500.0,0.00034049,7]
[393826517,1763021397062,-500.0,0.00034049,7]
[393826518,1763021397084,-500.0,0.00034049,7]
[393826519,1763021397107,-500.0,0.00034049,7]
[393826520,1763021397129,-500.0,0.00034049,7]
[393826521,1763021397153,-243.91574997,0.00034049,7]
[393826522,1763021397175,-500.0,0.00034049,7]
[393826523,1763021397201,-500.0,0.00034049,7]
[393826524,1763021397226,-399.12603278,0.00034049,7]
[393826525,1763021397250,-500.0,0.00034049,7]
[393826526,1763021397274,-379.00635945,0.00034049,7]
[393826527,1763021397296,-500.0,0.00034049,7]
[393826528,1763021397318,-500.0,0.00034049,7]
[393826529,1763021397343,-500.0,0.00034049,7]
[393826530,1763021397364,-395.38604764,0.00034049,7]
[393826531,1763021397385,-500.0,0.00034049,7]
[393826532,1763021397407,-500.0,0.00034049,7]
[393826533,1763021397430,-500.0,0.00034049,7]
[393826534,1763021397451,-500.0,0.00034049,7]
[393826535,1763021397475,-500.0,0.00034049,7]
[393826536,1763021397500,-500.0,0.00034049,7]
[393826537,1763021397526,-500.0,0.00034049,7]
[393826538,1763021397550,-500.0,0.00034049,7]
[393826539,1763021397576,-500.0,0.00034049,7]
[393826540,1763021397601,-500.0,0.00034049,7]
[393826541,1763021397626,-500.0,0.00034049,7]
[393826542,1763021397649,-500.0,0.00034049,7]
[393826543,1763021397672,-500.0,0.00034049,7]
[393826544,1763021397693,-674.47,0.00034052,3]
[393826545,1763021397712,-365.35005091,0.00034061,7]
[393826546,1763021397732,-500.0,0.00034061,7]
[393826547,1763021397751,-414.04027097,0.00034061,7]
[393826548,1763021397771,-500.0,0.00034061,7]
[393826549,1763021397800,-500.0,0.00034061,7]
[393826550,1763021397820,-500.0,0.00034061,7]
[393826551,1763021397841,-559.54703245,0.00034061,7]
[393826552,1763021397862,-500.0,0.00034061,7]
[393826553,1763021397885,-500.0,0.00034061,7]
[393826554,1763021397906,-500.0,0.00034061,7]
[393826555,1763021397928,-544654.99122508,0.00034062,2]
[393826556,1763021398066,5000.0,0.00019,2]
[393826557,1763021413180,178.0,0.00019,20]
[393826558,1763021423073,178.0,0.00019,7]
[393826569,1763021432527,-687.142694,0.00032655,2]
[393826572,1763021432536,-700.53428997,0.00033384,2]
[393826577,1763021432575,-4299.46571003,0.00033384,2]
[393826579,1763021432584,-5000.0,0.00033721,2]
[393826581,1763021432593,-354.61127358,0.00034041,2]
[393826583,1763021432604,-209.40437684,0.00034041,2]
[393826585,1763021432613,-208.77848438,0.00034061,7]
[393826587,1763021432623,-377.26511641,0.00034061,7]
[393826589,1763021432634,-232345.00877492,0.00034062,2]
[393826591,1763021432643,-337.92769161,0.00034151,60]
[393826593,1763021432652,-183.152,0.00034152,38]
[393826595,1763021432661,-224.81,0.00034152,3]
[393826597,1763021432671,-500.0,0.00034162,30]
[393826599,1763021432682,-250.85,0.000342,7]
[393826601,1763021432691,-4412.27,0.000342,14]
[393826603,1763021432700,-518.05,0.000342,14]
[393826605,1763021432710,-319.2209441,0.00034204,2]
[393826607,1763021432719,-158.476104,0.00034247,2]
[393826609,1763021432729,-300.21631229,0.00034399,2]
[393826611,1763021432738,-500.0,0.00034436,30]
[393826613,1763021432747,-295.13075892,0.00034549,2]
[393826615,1763021432757,-217.15233878,0.00034589,2]
[393826617,1763021432766,-236.53601199,0.00034647,2]
[393826619,1763021432775,-151.0,0.00034647,2]
[393826621,1763021432785,-151.0,0.00034647,2]
[393826623,1763021432794,-151.0,0.00034647,2]
[393826625,1763021432803,-500.0,0.00034647,2]
[393826627,1763021432813,-151.0,0.00034647,2]
[393826629,1763021432822,-500.0,0.00034647,2]
[393826631,1763021432832,-500.0,0.00034647,2]
[393826633,1763021432842,-151.0,0.00034702,2]
[393826635,1763021432852,-151.0,0.00034702,2]
[393826637,1763021432862,-151.0,0.00034702,2]
[393826639,1763021432872,-500.0,0.00034702,2]
[393826641,1763021432883,-277.63245829,0.00034702,2]
[393826643,1763021432892,-500.0,0.00034702,2]
[393826645,1763021432901,-500.0,0.00034702,2]
[393826647,1763021432910,-500.0,0.0003471,30]
[393826649,1763021432920,-500.0,0.00034745,2]
[393826651,1763021432929,-500.0,0.00034745,2]
[393826653,1763021432939,-500.0,0.00034745,2]
[393826655,1763021432949,-500.0,0.00034745,2]
[393826657,1763021432959,-500.0,0.00034745,2]
[393826659,1763021432968,-151.0,0.00034745,2]
[393826661,1763021432978,-500.0,0.00034745,2]
[393826663,1763021432988,-151.0,0.00034757,2]
[393826665,1763021432997,-198.0,0.00034757,2]
[393826667,1763021433006,-204.05006964,0.00034757,2]
[393826668,1763021433016,-500.0,0.00034757,2]
[393826669,1763021433025,-450.0,0.00034757,2]
[393826670,1763021433034,-500.0,0.00034757,2]
[393826671,1763021433044,-501.94247056,0.000348,2]
[393826672,1763021433054,-501.14040283,0.000348,2]
[393826673,1763021433063,-500.75560216,0.000348,2]
[393826674,1763021433073,-500.92867348,0.000348,2]
[393826675,1763021433083,-502.40859957,0.000348,2]
[393826676,1763021433092,-282.44032923,0.000348,2]
[393826677,1763021433102,-500.0074187,0.000348,2]
[393826678,1763021433111,-151.0,0.00034811,2]
[393826679,1763021433121,-500.0,0.00034811,2]
[393826680,1763021433131,-374.0,0.00034811,2]
[393826681,1763021433140,-151.0,0.00034866,2]
[393826682,1763021433149,-226.0,0.00034866,2]
[393826683,1763021433159,-245.0,0.00034921,2]
[393826684,1763021433168,-153.970185,0.00034926,2]
[393826685,1763021433177,-500.0,0.00034984,30]
[393826686,1763021433187,-1465.74862351,0.00035,2]
[393826687,1763021433196,-225.18697532,0.00035137,2]
[393826688,1763021433206,-223.87397032,0.000352,120]
[393826689,1763021433215,-167.43471042,0.00035253,2]
[393826690,1763021433225,-500.0,0.00035258,30]
[393826691,1763021433239,-449.62,0.00035522,3]
[393826692,1763021433249,-500.0,0.00035532,30]
[393826693,1763021433259,-233.51889341,0.00035685,2]
[393826694,1763021433268,-608.82784274,0.00035796,2]
[393826695,1763021433278,-500.0,0.00035806,30]
[393826696,1763021433288,-500.0,0.0003608,30]
[393826697,1763021433298,-242.15909246,0.00036233,2]
[393826698,1763021433307,-500.0,0.00036354,30]
[393826699,1763021433317,-1000.0,0.000365,2]
[393826700,1763021433326,-500.0,0.00036628,30]
[393826701,1763021433337,-251.11897888,0.00036781,2]
[393826702,1763021433346,-500.0,0.00036902,30]
[393826703,1763021433355,-303.03796519,0.00037,30]
[393826704,1763021433364,-1000.0,0.00037,2]
[393826705,1763021433374,-151.0,0.00037168,31]
[393826706,1763021433385,-151.0,0.00037168,31]
[393826707,1763021433395,-151.0,0.00037168,31]
[393826708,1763021433405,-233.818992,0.00037168,31]
[393826709,1763021433414,-151.0,0.00037168,31]
[393826710,1763021433424,-162.407797,0.00037168,31]
[393826711,1763021433433,-290.120073,0.00037168,31]
[393826712,1763021433443,-151.0,0.00037168,2]
[393826713,1763021433453,-290.120073,0.00037168,31]
[393826714,1763021433462,-290.120073,0.00037168,31]
[393826715,1763021433471,-290.120073,0.00037168,31]
[393826716,1763021433480,-417.490388,0.00037168,31]
[393826717,1763021433490,-417.490388,0.00037168,31]
[393826718,1763021433500,-417.490388,0.00037168,31]
[393826719,1763021433509,-417.490388,0.00037168,31]
[393826720,1763021433518,-1155.755911,0.00037168,31]
[393826721,1763021433528,-281.645684,0.00037168,31]
[393826722,1763021433537,-281.645684,0.00037168,31]
[393826723,1763021433547,-281.645684,0.00037168,31]
[393826724,1763021433556,-151.0,0.00037168,31]
[393826725,1763021433567,-281.645684,0.00037168,31]
[393826726,1763021433576,-151.0,0.00037168,31]
[393826727,1763021433586,-303.534378,0.00037168,31]
[393826728,1763021433595,-151.0,0.00037168,31]
[393826729,1763021433605,-303.534378,0.00037168,31]
[393826730,1763021433615,-151.0,0.00037168,31]
[393826731,1763021433624,-303.534378,0.00037168,31]
[393826732,1763021433633,-303.534378,0.00037168,31]
[393826733,1763021433642,-500.0,0.00037176,30]
[393826734,1763021433653,-878.29507882,0.00037181,2]
[393826735,1763021433662,-13323.08154219,0.00037181,5]
[393826736,1763021433672,-7754.6146225,0.00037181,120]
[393826737,1763021433681,-1014.2399862,0.00037329,2]
[393826738,1763021433691,-260.4103811,0.00037329,2]
[393826739,1763021433700,-500.0,0.0003745,30]
[393826740,1763021433711,-500.0,0.00037724,30]
[393826741,1763021433722,-600.0,0.00037827,30]
[393826742,1763021433732,-270.0455652,0.00037877,2]
[393826743,1763021433741,-500.0,0.00037998,30]
[393826744,1763021433751,-340.96,0.00038272,30]
[393826745,1763021433760,-156.667866,0.00038356,120]
[393826746,1763021433770,-156.667866,0.00038356,120]
[393826747,1763021433780,-156.667866,0.00038356,120]
[393826748,1763021433789,-156.667866,0.00038356,120]
[393826749,1763021433799,-151.0,0.00038409,14]
[393826750,1763021433808,-151.0,0.00038409,14]
[393826751,1763021433818,-151.0,0.00038409,14]
[393826752,1763021433827,-151.0,0.00038409,14]
[393826753,1763021433837,-163.0,0.00038409,14]
[393826754,1763021433847,-280.03725112,0.00038425,2]
[393826755,1763021433856,-500.01,0.00038445,30]
[393826756,1763021433866,-151.0,0.0003851,14]
[393826757,1763021433877,-4412.27,0.000386,14]
[393826758,1763021433886,-518.05,0.000386,14]
[393826759,1763021433895,-300.5165286,0.00038985,2]
[393826760,1763021433904,-250.85,0.000391,7]
[393826761,1763021433914,-200.0,0.00039181,120]
[393826762,1763021433923,-191.91230864,0.00039339,4]
[393826763,1763021433933,-300.0,0.0004,120]
[393826764,1763021433942,-1014.2399862,0.00040943,2]
[393826765,1763021433952,-158.476104,0.00041096,2]
[393826766,1763021433962,-720.0,0.0004161,90]
[393826767,1763021433971,-151.0,0.000437,14]
[393826768,1763021433981,-2000.0,0.00043716,21]
[393826769,1763021433992,-7218.19340458,0.00043735,2]
[393826770,1763021434001,-153.970185,0.00043756,20]
[393826771,1763021434011,-500.0,0.00043835,120]
[393826772,1763021434022,-500.0,0.00043835,120]
[393826773,1763021434032,-500.0,0.00043835,120]
[393826774,1763021434042,-500.0,0.00043835,120]
[393826775,1763021434052,-500.0,0.00043835,120]
[393826776,1763021434062,-500.0,0.00043835,120]
[393826777,1763021434071,-500.0,0.00043835,120]
[393826778,1763021434081,-500.0,0.00043835,120]
[393826779,1763021434091,-500.0,0.00043835,120]
[393826780,1763021434100,-524.09924027,0.00043835,120]
[393826781,1763021434109,-500.0,0.00043835,120]
[393826782,1763021434119,-500.0,0.00043835,120]
[393826783,1763021434129,-505.80276171,0.00043835,120]
[393826784,1763021434139,-581.67,0.00043835,120]
[393826785,1763021434148,-500.0,0.00043835,120]
[393826786,1763021434157,-500.0,0.00043835,120]
[393826787,1763021434167,-541.21,0.00043835,120]
[393826788,1763021434175,-536.9,0.00043835,120]
[393826789,1763021434185,-776.55,0.00043835,120]
[393826790,1763021434195,-500.23554079,0.00043835,120]
[393826791,1763021434204,-500.0,0.00043835,120]
[393826792,1763021434214,-502.60912032,0.00043835,120]
[393826793,1763021434223,-303.57018187,0.00043835,120]
[393826794,1763021434232,-500.0,0.00043835,120]
[393826795,1763021434245,-500.0,0.00043835,20]
[393826796,1763021434255,-1561.17,0.00043835,120]
[393826797,1763021434264,-500.0,0.00043835,120]
[393826798,1763021434274,-699.77,0.00043835,120]
[393826799,1763021434283,-500.0,0.00043835,120]
[393826800,1763021434294,-505.43215074,0.00043835,120]
[393826801,1763021434305,-592.89861943,0.00043835,120]
[393826802,1763021434315,-500.0,0.00043835,120]
[393826803,1763021434325,-500.0,0.00043835,120]
[393826804,1763021434334,-500.0,0.00043835,120]
[393826805,1763021434343,-717.52,0.00043835,120]
[393826806,1763021434353,-500.0,0.00043835,120]
[393826807,1763021434362,-500.0,0.00043835,120]
[393826808,1763021434371,-500.0,0.00043835,120]
[393826809,1763021434381,-473.75425787,0.00043835,120]
[393826810,1763021434390,-500.0,0.00043835,120]
[393826811,1763021434399,-500.0,0.00043835,120]
[393826812,1763021434409,-500.0,0.00043835,120]
[393826813,1763021434418,-1000.0,0.00043835,2]
[393826814,1763021434429,-259.79,0.00043835,120]
[393826815,1763021434439,-500.0,0.00043835,120]
[393826816,1763021434448,-500.0,0.00043835,120]
[393826817,1763021434457,-500.0,0.00043835,120]
[393826818,1763021434467,-512.96881194,0.00043835,120]
[393826819,1763021434475,-500.0,0.00043835,120]
[393826820,1763021434484,-500.0,0.00043835,120]
[393826821,1763021434494,-500.0,0.00043835,120]
[393826822,1763021434504,-618.08,0.00043835,120]
[393826823,1763021434513,-500.0,0.00043835,120]
[393826824,1763021434524,-181.37439242,0.00043835,120]
[393826825,1763021434534,-500.0,0.00043835,120]
[393826826,1763021434543,-500.0,0.00043835,120]
[393826827,1763021434553,-500.0,0.00043835,120]
[393826828,1763021434562,-515.39095331,0.00043835,120]
[393826829,1763021434572,-500.0,0.00043835,30]
[393826830,1763021434747,-765.31,0.00043835,120]
[393826831,1763021434757,-500.0,0.00043835,120]
[393826832,1763021434767,-500.0,0.00043835,120]
[393826833,1763021434776,-477.16793797,0.00043835,120]
[393826834,1763021434785,-500.0,0.00043835,120]
[393826835,1763021434795,-500.0,0.00043835,120]
[393826836,1763021434804,-651.65,0.00043835,120]
[393826837,1763021434813,-534.18,0.00043835,120]
[393826838,1763021434823,-500.0,0.00043835,120]
[393826839,1763021434832,-500.0,0.00043835,120]
[393826840,1763021434841,-500.0,0.00043835,120]
[393826841,1763021434851,-500.0,0.00043835,120]
[393826842,1763021434861,-500.0,0.00043835,10]
[393826843,1763021434870,-500.0,0.00043835,120]
[393826844,1763021434880,-500.0,0.00043835,120]
[393826845,1763021434889,-500.0,0.00043835,120]
[393826846,1763021434899,-770.11,0.00043835,120]
[393826847,1763021434908,-500.0,0.00043835,120]
[393826848,1763021434917,-500.0,0.00043835,120]
[393826849,1763021434926,-500.0,0.00043835,120]
[393826850,1763021434935,-500.0,0.00043835,120]
[393826851,1763021434945,-500.0,0.00043835,120]
[393826852,1763021434954,-500.0,0.00043835,120]
[393826853,1763021434964,-500.0,0.00043835,120]
[393826854,1763021434973,-500.0,0.00043835,120]
[393826855,1763021434983,-500.0,0.00043835,120]
[393826856,1763021434992,-500.0,0.00043835,30]
[393826857,1763021435002,-519.57772485,0.00043835,120]
[393826858,1763021435012,-500.0,0.00043835,120]
[393826859,1763021435022,-500.0,0.00043835,120]
[393826860,1763021435032,-410.16059843,0.00043835,120]
[393826861,1763021435041,-500.0,0.00043835,120]
[393826862,1763021435051,-500.0,0.00043835,120]
[393826863,1763021435061,-500.0,0.00043835,120]
[393826864,1763021435070,-515.92475718,0.00043835,120]
[393826865,1763021435080,-667.49,0.00043835,120]
[393826866,1763021435089,-506.05538278,0.00043835,120]
[393826867,1763021435096,-500.0,0.00043835,120]
[393826868,1763021435104,-500.0,0.00043835,120]
[393826869,1763021435113,-201.50973364,0.00043835,120]
[393826870,1763021435123,-500.0,0.00043835,120]
[393826871,1763021435136,-500.0,0.00043835,120]
[393826872,1763021435145,-153.131925,0.00043835,120]
[393826873,1763021435154,-500.0,0.00043835,120]
[393826874,1763021435164,-500.0,0.00043835,120]
[393826875,1763021435173,-500.0,0.00043835,120]
[393826876,1763021435182,-903.46,0.00043835,120]
[393826877,1763021435192,-500.0,0.00043835,120]
[393826878,1763021435201,-500.0,0.00043835,120]
[393826879,1763021435211,-548.90675944,0.00043835,120]
[393826880,1763021435221,-1102.83,0.00043835,120]
[393826881,1763021435233,-720.46,0.00043835,120]
[393826882,1763021435244,-500.0,0.00043835,120]
[393826883,1763021435253,-500.0,0.00043835,120]
[393826884,1763021435263,-500.0,0.00043835,120]
[393826885,1763021435272,-500.0,0.00043835,120]
[393826886,1763021435282,-500.0,0.00043835,120]
[393826887,1763021435291,-531.79,0.00043835,120]
[393826888,1763021435300,-500.0,0.00043835,30]
[393826889,1763021435310,-500.0,0.00043835,120]
[393826890,1763021435319,-500.0,0.00043835,120]
[393826891,1763021435329,-500.0,0.00043835,120]
[393826892,1763021435339,-500.0,0.00043835,120]
[393826893,1763021435348,-500.0,0.00043835,120]
[393826894,1763021435359,-376.80745637,0.00043835,120]
[393826895,1763021435368,-500.0,0.00043835,120]
[393826896,1763021435378,-500.0,0.00043835,120]
[393826897,1763021435387,-500.0,0.00043835,120]
[393826898,1763021435397,-500.0,0.00043835,120]
[393826899,1763021435406,-500.0,0.00043835,120]
[393826900,1763021435415,-878.39,0.00043835,120]
[393826901,1763021435425,-415.88945189,0.00043835,120]
[393826902,1763021435435,-500.0,0.00043835,120]
[393826903,1763021435445,-500.0,0.00043835,120]
[393826904,1763021435454,-500.0,0.00043835,120]
[393826905,1763021435465,-500.0,0.00043835,120]
[393826906,1763021435474,-500.0,0.00043835,120]
[393826907,1763021435483,-500.0,0.00043835,120]
[393826908,1763021435492,-508.49001046,0.00043835,120]
[393826909,1763021435503,-500.0,0.00043835,120]
[393826910,1763021435515,-500.0,0.00043835,120]
[393826911,1763021435525,-500.0,0.00043835,120]
[393826912,1763021435535,-500.0,0.00043835,120]
[393826913,1763021435544,-500.0,0.00043835,120]
[393826914,1763021435554,-1074.43,0.00043835,120]
[393826915,1763021435563,-163.00413539,0.00043835,120]
[393826916,1763021435573,-500.0,0.00043835,120]
[393826917,1763021435582,-500.0,0.00043835,120]
[393826918,1763021435592,-500.0,0.00043835,120]
[393826919,1763021435601,-500.0,0.00043835,120]
[393826920,1763021435612,-500.0,0.00043835,120]
[393826921,1763021435622,-500.0,0.00043835,120]
[393826922,1763021435633,-500.0,0.00043835,120]
[393826923,1763021435642,-500.0,0.00043835,120]
[393826924,1763021435653,-500.0,0.00043835,120]
[393826925,1763021435662,-501.87593534,0.00043835,120]
[393826926,1763021435671,-541.9,0.00043835,120]
[393826927,1763021435682,-500.0,0.00043835,120]
[393826928,1763021435694,-500.0,0.00043835,120]
[393826929,1763021435703,-531.78,0.00043835,120]
[393826930,1763021435713,-500.0,0.00043835,120]
[393826931,1763021435722,-500.0,0.00043835,120]
[393826932,1763021435731,-500.0,0.00043835,120]
[393826933,1763021435740,-500.0,0.00043835,120]
[393826934,1763021435750,-500.0,0.00043835,120]
[393826935,1763021435759,-500.0,0.00043835,120]
[393826936,1763021435769,-500.0,0.00043835,120]
[393826937,1763021435778,-500.0,0.00043835,2]
[393826938,1763021435787,-500.0,0.00043835,120]
[393826939,1763021435796,-500.0,0.00043835,120]
[393826940,1763021435805,-500.0,0.00043835,120]
[393826941,1763021435815,-500.0,0.00043835,120]
[393826942,1763021435824,-500.0,0.00043835,120]
[393826943,1763021435833,-500.0,0.00043835,120]
[393826944,1763021435842,-500.0,0.00043835,120]
[393826945,1763021435851,-830.47,0.00043835,120]
[393826946,1763021435860,-500.0,0.00043835,120]
[393826947,1763021435869,-628.68,0.00043835,120]
[393826948,1763021435879,-500.0,0.00043835,120]
[393826949,1763021435888,-500.0,0.00043835,120]
[393826950,1763021435898,-500.0,0.00043835,120]
[393826951,1763021435907,-1387.95,0.00043835,7]
[393826952,1763021435916,-349.7136489,0.00043835,120]
[393826953,1763021435925,-954.35,0.00043835,120]
[393826954,1763021435934,-500.0,0.00043835,120]
[393826955,1763021435945,-500.0,0.00043835,120]
[393826956,1763021435954,-888.85,0.00043835,120]
[393826957,1763021435964,-240.51082113,0.00043835,120]
[393826958,1763021435973,-500.0,0.00043835,120]
[393826959,1763021435982,-500.0,0.00043835,120]
[393826960,1763021435991,-500.0,0.00043835,120]
[393826961,1763021436001,-557.06318506,0.00043835,120]
[393826962,1763021436011,-500.0,0.00043835,120]
[393826963,1763021436021,-500.0,0.00043835,120]
[393826964,1763021436030,-500.0,0.00043835,120]
[393826965,1763021436040,-1350.1,0.00043835,120]
[393826966,1763021436049,-500.0,0.00043835,120]
[393826967,1763021436059,-500.0,0.00043835,120]
[393826968,1763021436068,-500.0,0.00043835,120]
[393826969,1763021436077,-500.0,0.00043835,120]
[393826970,1763021436086,-500.0,0.00043835,120]
[393826971,1763021436096,-500.0,0.00043835,120]
[393826972,1763021436105,-856.8,0.00043835,120]
[393826973,1763021436115,-662.52,0.00043835,120]
[393826974,1763021436124,-500.0,0.00043835,120]
[393826975,1763021436134,-500.0,0.00043835,120]
[393826976,1763021436143,-226.26504127,0.00043835,120]
[393826977,1763021436153,-994.1,0.00043835,120]
[393826978,1763021436163,-500.0,0.00043835,120]
[393826979,1763021436172,-500.0,0.00043835,120]
[393826980,1763021436182,-500.0,0.00043835,120]
[393826981,1763021436191,-500.0,0.00043835,120]
[393826982,1763021436201,-500.0,0.00043835,120]
[393826983,1763021436211,-500.0,0.00043835,120]
[393826984,1763021436220,-552.11,0.00043835,120]
[393826985,1763021436229,-500.0,0.00043835,120]
[393826986,1763021436243,-759.6,0.00043835,120]
[393826987,1763021436253,-726.44,0.00043835,120]
[393826988,1763021436262,-500.0,0.00043835,120]
[393826989,1763021436271,-500.0,0.00043835,120]
[393826990,1763021436281,-3381.49,0.00043835,2]
[393826991,1763021436290,-500.0,0.00043835,120]
[393826992,1763021436301,-500.0,0.00043835,120]
[393826993,1763021436311,-500.0,0.00043835,120]
[393826994,1763021436321,-500.0,0.00043835,120]
[393826995,1763021436330,-522.36,0.00043835,120]
[393826996,1763021436338,-871.19,0.00043835,120]
[393826997,1763021436347,-500.0,0.00043835,120]
[393826998,1763021436356,-964.85,0.00043835,120]
[393826999,1763021436366,-500.0,0.00043835,120]
[393827000,1763021436375,-500.0,0.00043835,120]
[393827001,1763021436385,-500.0,0.00043835,120]
[393827002,1763021436394,-500.0,0.00043835,120]
[393827003,1763021436403,-2094.98,0.00043835,120]
[393827004,1763021436412,-500.0,0.00043835,120]
[393827005,1763021436421,-548.19,0.00043835,120]
[393827006,1763021436430,-500.0,0.00043835,120]
[393827007,1763021436439,-293.67441789,0.00043835,120]
[393827008,1763021436448,-500.0,0.00043835,120]
[393827009,1763021436458,-715.4,0.00043835,120]
[393827010,1763021436466,-500.0,0.00043835,120]
[393827011,1763021436476,-500.0,0.00043835,120]
[393827012,1763021436485,-500.0,0.00043835,120]
[393827013,1763021436494,-500.0,0.00043835,120]
[393827014,1763021436503,-1000.0,0.00043835,2]
[393827015,1763021436512,-500.0,0.00043835,120]
[393827016,1763021436522,-1102.15,0.00043835,120]
[393827017,1763021436531,-778.27,0.00043835,2]
[393827018,1763021436541,-500.0,0.00043835,120]
[393827019,1763021436550,-500.0,0.00043835,120]
[393827020,1763021436559,-454.35360158,0.00043835,120]
[393827021,1763021436568,-500.0,0.00043835,120]
[393827022,1763021436578,-500.0,0.00043835,120]
[393827023,1763021436588,-500.0,0.00043835,120]
[393827024,1763021436597,-500.0,0.00043835,120]
[393827025,1763021436607,-631.98,0.00043835,120]
[393827026,1763021436616,-500.0,0.00043835,120]
[393827027,1763021436626,-500.0,0.00043835,120]
[393827028,1763021436635,-1519.61,0.00043835,120]
[393827029,1763021436644,-775.15,0.00043835,120]
[393827030,1763021436653,-500.0,0.00043835,120]
[393827031,1763021436663,-500.0,0.00043835,120]
[393827032,1763021436672,-500.0,0.00043835,120]
[393827033,1763021436681,-500.0,0.00043835,120]
[393827034,1763021436690,-500.0,0.00043835,120]
[393827035,1763021436701,-500.0,0.00043835,120]
[393827036,1763021436711,-500.0,0.00043835,120]